Cogmind - Beta 13 @@@ ROGUE MODE // 2024.04.27 @ 09:58:23 Player: ForestDarkPsy Result: Destroyed by ZK-FC5(R) with Subdweller Laser Performance ------------- Evolutions (0) 0 Regions Visited (2) 400 Robots Destroyed (31) 155 Value Destroyed (692) 692 Prototype IDs (10) 200 Alien Tech Used (0) 0 Bonus (0) 0 TOTAL SCORE: 1447 Bonus ------- None Cogmind --------- Core Integrity 0/250 Matter 203/300 Energy 160/160 System Corruption 1% Temperature Cool (6) Movement Treading (240) Ox1 Location -10/Subcaves Parts ------- > --- POWER (1) -------- Light Nuclear Core > --- PROPULSION (2) --- Light Treads Light Treads > --- UTILITY (2) ------ High-capacity Storage Unit Improved Terrain Scanner > --- WEAPON (2) ------- Light Cannon Grenade Launcher > --- INVENTORY (20) --- Light Nuclear Core Light Treads Subdweller Monowheel Improved Heat Sink Medium Storage Unit Structural Scanner Seismic Detector Makeshift Light Armor Plating Gun Armor V3-11A's Pendant Assault Rifle Battle Rifle Battle Cannon Grenade Launcher Peak State ------------ > --- POWER ------------ Light Nuclear Core > --- PROPULSION ------- Light Treads Light Treads > --- UTILITY ---------- High-capacity Storage Unit Improved Terrain Scanner > --- WEAPON ----------- Light Cannon Battle Cannon > --- INVENTORY -------- Light Nuclear Core Light Treads Light Treads Subdweller Monowheel Improved Heat Sink Medium Storage Unit Structural Scanner Seismic Detector Makeshift Light Armor Plating Gun Armor V3-11A's Pendant Assault Rifle Battle Rifle Grenade Launcher Grenade Launcher [Rating: 15] Favorites ----------- Power Light Nuclear Core Engine Ion Engine Power Core Light Nuclear Core Propulsion Light Treads Treads Light Treads Utility Medium Storage Unit Device Improved Terrain Scanner Storage Medium Storage Unit Weapon Light Cannon Ballistic Gun Assault Rifle Ballistic Cannon Light Cannon Launcher Grenade Launcher Special Weapon Mining Laser Build | -11 -10 -10 ------- Run | Yrd Mat Sub Slots Evolved . | . . . Power . | . . . Propulsion . | . . . Utility . | . . . Weapon . | . . . Parts Attached 26 | 8 11 7 Power 2 | 1 1 . Engine 1 | 1 . . Core 1 | . 1 . Reactor . | . . . Propulsion 4 | 2 1 1 Treads 4 | 2 1 1 Leg . | . . . Wheel . | . . . Hover . | . . . Flight . | . . . Utility 9 | 3 4 2 Device 7 | 3 3 1 Storage 2 | . 1 1 Processor . | . . . Hackware . | . . . Protection . | . . . Artifact . | . . . Weapon 11 | 2 5 4 Energy Gun . | . . . Energy Cannon . | . . . Ballistic Gun 2 | 2 . . Ballistic Cannon 2 | . 1 1 Launcher 4 | . 2 2 Special Weapon 3 | . 2 1 Impact Weapon . | . . . Slashing Weapon . | . . . Piercing Weapon . | . . . Special Melee Weapon . | . . . Unidentified Prototypes . | . . . Parts Lost 3 | . 1 2 Power . | . . . Propulsion 1 | . . 1 Utility 1 | . 1 . Weapon 1 | . . 1 Highest Loss Streak 1 | . 1 1 To Critical Strikes . | . . . Average Slot Usage (%) 99 | . 99 99 Engine 5 | . 11 . Core 8 | . 2 14 Treads 27 | . 27 28 Device 14 | . 15 14 Storage 13 | . 12 14 Ballistic Gun 4 | . 8 . Ballistic Cannon 13 | . 9 17 Launcher 5 | . 6 4 Special Weapon 4 | . 3 5 Naked Turns . | . . . Heaviest Build 52 | 11 22 52 Greatest Support 40 | 40 40 40 Greatest Overweight (x) 1 | 1 . 1 Average Overweight (x) . | . . . Largest Inventory Capacity 20 | 5 10 20 Average Capacity 12 | 5 9 17 Most Carried 15 | . 10 15 Average Carried 9 | . 8 12 Final Capacity 20 | 5 10 20 Final Carried 14 | . 10 14 Class Distribution -------------------- 100% | Mutant Dominant Class ---------------- Mutant | -10/Materials Mutant | -10/Subcaves Resources | -11 -10 -10 ----------- Run | Yrd Mat Sub Matter Collected 1078 | 388 484 206 Remotely . | . . . Salvage Created 732 | 232 386 114 Parts 59 | 17 34 8 Haulers Intercepted 1 | . 1 . Recyclers Shooed 1 | . 1 . Parts Field Recycled . | . . . Retrieved Matter . | . . . Parts Self-Destructed 13 | . . 13 Prevented . | . . . Kills | -11 -10 -10 ------- Run | Yrd Mat Sub Combat Hostiles Destroyed 18 | . 12 6 Guns 5 | . 5 . Cannons 5 | . 3 2 AOE 8 | . 4 4 Classes Destroyed 9 | 2 5 2 Worker 2 | . 2 . Tunneler 6 | 6 . . Hauler 1 | . 1 . Recycler 2 | 1 1 . Watcher 2 | . 2 . Swarmer 5 | . 5 . Grunt 7 | . 7 . Sentry 1 | . . 1 Subdweller 5 | . . 5 Best Kill Streak 4 | 2 4 2 Combat Bots Only 3 | . 3 2 Max Kills in Single Turn 3 | 1 3 2 Gunslinging . | . . . Exploded 2 | . 2 2 Melee . | . . . Uniques/NPCs Destroyed . | . . . Combat | -11 -10 -10 -------- Run | Yrd Mat Sub Hostile Shots Fired 82 | . 53 29 Missed 23 | . 13 10 Damage Taken 1019 | . 471 548 Core 250 | . 81 169 Absorbed by Shields . | . . . Regen/Repaired (Parts) 110 | . 110 . Core Remaining (%) 100 | 100 . . Volleys Fired 106 | 18 51 37 Largest 2 | 2 2 2 Hottest 100 | 40 100 74 Shots Fired 153 | 36 77 40 Gun 84 | 36 48 . Cannon 48 | . 18 30 Launcher 17 | . 7 10 Special 4 | . 4 . Kinetic 132 | 36 66 30 Thermal 4 | . 4 . Explosive 17 | . 7 10 Electromagnetic . | . . . Robot Hit Streak 11 | 5 11 10 Robot Miss Streak 4 | 3 4 3 Penetration Max . | . . . Secondary Targets 1 | . 1 . Max Gunslinging Chain 1 | . 1 . Shots Hit Robots 74 | 21 40 13 Core Hits 54 | 8 32 14 Critical Kills . | . . . Critical Parts Destroyed . | . . . Critical Strikes . | . . . Melee Attacks . | . . . Impact . | . . . Slashing . | . . . Piercing . | . . . Sneak Attacks . | . . . Combat Hostiles . | . . . Follow-up Attacks . | . . . Damage Inflicted 1922 | 265 1102 555 Guns 641 | 265 376 . Cannons 349 | . 175 174 Explosions 932 | . 551 381 Melee . | . . . Ramming . | . . . Kinetic 990 | 265 551 174 Thermal . | . . . Explosive 932 | . 551 381 Electromagnetic . | . . . Impact . | . . . Slashing . | . . . Piercing . | . . . Highest Corruption 1 | . 1 1 Average Corruption 1 | . 1 1 Corruption Purged . | . . . Corruption Blocked . | . . . Effects 27 | . 16 11 Message Errors 9 | . 4 5 Matter Fused 4 | . 3 1 Heat Flow Errors 3 | . 1 2 Energy Discharges 3 | . 2 1 Data Loss (minor) 5 | . 3 2 Misfires 2 | . 2 . Alerts 1 | . 1 . Overload Shots . | . . . Overflow Damage 52 | . 52 . Projectiles . | . . . Explosions 52 | . 52 . Melee . | . . . Knockbacks 3 | . 2 1 Impact . | . . . Kinetic 3 | . 2 1 Secondary . | . . . Self-Inflicted Damage 82 | . . 82 Shots 3 | . . 3 Rammed . | . . . Targets Rammed . | . . . Kicked . | . . . Crushed . | . . . Highest Temperature 230 | . 230 134 Average Temperature 37 | . 34 63 Received Heat Transfer 189 | . 171 18 Siege Activations . | . . . Robots Corrupted . | . . . Combat Hostiles . | . . . Parts Fried . | . . . Impact Corruptions . | . . . Robots Melted . | . . . Combat Hostiles . | . . . Parts Melted . | . . . Heat Transferred . | . . . Parts Sabotaged . | . . . Parts Stolen . | . . . Parts Stripped . | . . . Power Chain Reactions . | . . . Alert | -11 -10 -10 ------- Run | Yrd Mat Sub Peak Influence 139 | 35 139 . Initial 22 | . 22 . Average 35 | 19 38 . Maximum Alert Level . | . . . Low Security (%) 100 | 100 100 . Level 1 . | . . . Level 2 . | . . . Level 3 . | . . . Level 4 . | . . . Level 5 . | . . . High Security . | . . . Max Security . | . . . Squads Dispatched 1 | . 1 . Investigation 1 | . 1 . Extermination . | . . . Reinforcement . | . . . Assault . | . . . Garrison . | . . . Intercept . | . . . Searches Triggered . | . . . Construction Impeded . | . . . Haulers Reinforced . | . . . Active Scanning Responses . | . . . Cargo Convoy Interrupts . | . . . Stealth | -11 -10 -10 --------- Run | Yrd Mat Sub Distress Signals 2 | . 2 . Communications Jammed . | . . . Distress Signals . | . . . Times Spotted 27 | . 20 7 Peak Tracking Total 4 | . 4 2 Tactical Retreats 1 | . 1 . Traps | -11 -10 -10 ------- Run | Yrd Mat Sub Traps Triggered 3 | . 3 . Indirectly . | . . . Trap Hack Attempts . | . . . Triggered . | . . . Disarmed . | . . . Reprogrammed . | . . . Reused . | . . . Traps Extracted . | . . . Installed . | . . . Triggered . | . . . Machines | -11 -10 -10 ---------- Run | Yrd Mat Sub Machines Disabled 4 | . 3 1 Max in Single Turn 1 | . 1 1 Machines Repaired . | . . . Machines Dismantled . | . . . Machines Sabotaged . | . . . Overloaded Fab Kills . | . . . Hacking | -11 -10 -10 --------- Run | Yrd Mat Sub Machines Accessed 8 | . 7 1 Terminals 6 | . 6 . Fabricators . | . . . Repair Stations 1 | . 1 . Recycling Units . | . . . Scanalyzers . | . . . Garrison Access . | . . . Total Hacks 30 | . 21 9 Successful 22 | . 13 9 Failed 8 | . 8 . Catastrophic 1 | . 1 . Database Lockouts . | . . . Manual 8 | . 8 . Terminals 15 | . 15 . Fabricators . | . . . Repair Stations 6 | . 6 . Recycling Units . | . . . Scanalyzers . | . . . Garrison Access . | . . . Terminal Hacks 15 | . 6 9 Record 8 | . . 8 Robot Analysis 2 | . 2 . Locate Traps 1 | . 1 . Dispatch Records 1 | . 1 . Zone Layout 2 | . 2 . Derelict Proto ID Bank 1 | . . 1 Fabricator Hacks . | . . . Repair Station Hacks 5 | . 5 . Scan Component 3 | . 3 . Repair 2 | . 2 . Recycling Unit Hacks . | . . . Scanalyzer . | . . . Garrison Access Hacks . | . . . Unauthorized Hacks 2 | . 2 . Terminals 2 | . 2 . Botnet 2 | . 2 . Fabricators . | . . . Repair Stations . | . . . Recycling Units . | . . . Scanalyzers . | . . . Garrison Access . | . . . Data Cores Recovered . | . . . Used . | . . . Hacking Detections 8 | . 8 . Full Trace Events . | . . . Feedback Events . | . . . Feedback Blocked . | . . . Robot Schematics Acquired . | . . . Robots Built . | . . . Authchips . | . . . Time . | . . . Total Robot Build Rating . | . . . Part Schematics Acquired . | . . . Parts Built . | . . . Authchips . | . . . Time . | . . . Total Part Build Rating . | . . . Parts Repaired 2 | . 2 . Time 52 | . 52 . Parts Recycled . | . . . Recycled Matter . | . . . Retrieved Matter . | . . . Retrieved Components . | . . . Parts Scanalyzed . | . . . Part Schematics Acquired . | . . . Parts Damaged . | . . . Bothacking | -11 -10 -10 ------------ Run | Yrd Mat Sub Used RIF Installer . | . . . Robots Hacked . | . . . Non-combat . | . . . Combat . | . . . Robot Hacks Applied . | . . . Relay Couplers Released . | . . . Fabnet Peak Effective % . | . . . Robots Rewired . | . . . Allies Hacked . | . . . Hacks Repelled . | . . . Allies | -11 -10 -10 -------- Run | Yrd Mat Sub Total Allies . | . . . Largest Group . | . . . Highest-Rated Group . | . . . Highest-Rated Ally . | . . . Total Orders . | . . . Ally Attacks . | . . . Total Damage . | . . . Kills . | . . . Allies Corrupted . | . . . Allies Melted . | . . . Intel | -11 -10 -10 ------- Run | Yrd Mat Sub Robot Analysis Total 2 | . 2 . Derelict Logs Recovered 1 | . . 1 Drone Launches . | . . . Drone Recoveries . | . . . Exploration | -11 -10 -10 ------------- Run | Yrd Mat Sub Turns Passed 4057 | 263 2002 1792 Spaces Moved 1968 | 128 1049 791 Core 8 | 8 . . Treads 1960 | 120 1049 791 Legs . | . . . Wheels . | . . . Hover . | . . . Flight . | . . . Fastest Speed 50 | 50 160 160 Average Speed 179 | 154 160 209 Slowest Speed 240 | 160 160 240 Overloaded Moves . | . . . Propulsion Burnouts . | . . . Robots Hopped . | . . . Cave-ins Triggered . | . . . Exploration Rate (%) 50 | 5 99 47 Regions Visited 2 Branch Regions 1 Pre-discovered Areas 1 | . . 1 Known Exits Taken . | . . . Unknown Exits Taken 2 | 1 1 . Scrap Searched 3 | . . 3 Spaces Dug 14 | . 4 10 Terrain Destroyed 66 | . 13 53 Melee . | . . . Projectile 4 | . 4 . AOE 62 | . 9 53 Terrain Rammed . | . . . Walls Destroyed . | . . . Machines Disabled . | . . . Actions | -11 -10 -10 --------- Run | Yrd Mat Sub Total 2329 | 154 1291 884 Wait 198 | . 155 43 Move 1966 | 127 1048 791 Hop . | . . . Pick Up 23 | . 17 6 Fast Attach 10 | 8 2 . Attach 4 | . 2 2 Detach . | . . . Swap 12 | . 7 5 Drop 10 | 1 9 . Fire 106 | 18 51 37 Melee . | . . . Ram . | . . . Kick . | . . . Crush . | . . . Escape Stasis . | . . . Rewire . | . . . Trap . | . . . Miscellaneous . | . . . Route ------- -11/Scrapyard -10/Materials (discovered 6 exits: [*Mat x3] / [*Min x2] / *Sub) -10/Subcaves History --------- Turn | Location | Event 10 | -11/Scrapyard | Discovered new exit (range 14) 264 | -11/Scrapyard | Entered Materials 303 | -10/Materials | Build established: Mutant 434 | -10/Materials | Discovered new exit (range 8) 508 | -10/Materials | Discovered new exit (range 9) 720 | -10/Materials | Discovered new exit (range 8) 1054 | -10/Materials | Discovered new exit (range 8) 1161 | -10/Materials | Discovered new exit (range 15) 1164 | -10/Materials | Derelicts attacked the area 1559 | -10/Materials | Repaired Lgt. Treads 1586 | -10/Materials | Repaired Grenade Launcher 1880 | -10/Materials | Discovered new exit (range 14) 2266 | -10/Materials | Entered Subcaves 2271 | -10/Subcaves | Learned Materials trap positions 2391 | -10/Subcaves | Learned location of Zion (-6) 2391 | -10/Subcaves | Met a Zionite searching for "candidates" 2764 | -10/Subcaves | Visited triangular shrine 2779 | -10/Subcaves | Found Prototype Device 3351 | -10/Subcaves | Disturbed a concealed Subdweller 3712 | -10/Subcaves | Visited 4L-MR0's lab 3754 | -10/Subcaves | Found Gun Armor 3854 | -10/Subcaves | Core integrity fell below 50% 3955 | -10/Subcaves | Core integrity fell below 20% 4049 | -10/Subcaves | A swath of the cavern ceiling suddenly collapsed 4058 | -10/Subcaves | Destroyed by ZK-FC5(R) with Subdweller Laser Last Messages --------------- 03736_ Connecting with 4L-MR0's Prototype Logs... 03746_ Testing Chamber breached. 03754_ Acquired Gun Armor. 03758_ 4L-MR0 mumbles: "Who knows where that last prototype ended up, probably tossed aside somewhere as if it were useless junk..." 03863_ Lgt. Treads destroyed. 03864_ JP-S0S(R) destroyed. 03864_ 3P-P4R(R) destroyed. 03890_ Acquired 18 matter. 03893_ Acquired 13 matter. 03898_ The unstable cave ceiling collapses. 03936_ YHV<983 :X1COZ3MX2|S2DUYZY XT 03954_ RV-X55(R) destroyed. 03958_ Subatomizers dissect the Disposable Heat Sink. 03959_ Acquired 12 matter. 03973_ Subatomizers dissect the Disposable Heat Sink. 04037_ Subatomizers dissect the Lgt. Ion Engine, destroying it. A swath of the cavern ceiling suddenly collapses. 04052_ Subatomizers dissect the Sub. Monowheel. 04058_ ZK-FC5(R): "GOODGOOD!" Map ----- +----------------------------------------------------+ | ???????????????????????????# ??????????#??? ?? | | ??????????????????????????## ??###???????? ?#? | | ??????????????????????##### ?? ###????? ? ?? | | ??????????????????? ??# #?? #???? ?## | | ?????????????????????## ##?# ###? ## | | ??????????????????#??# ### ## ## | | ?????????????????????# " ## | | ??????????????????????# "" #?# | | ?????????????????????????# ""#??## | | ?????????????????????????## #????# | | ??????????????????#??##### # ##?##?## | | ??????????????##?????# #### " #?#?##### | | ??????????????? ????# # # #?## #####"### | | ???????????????# ??????#?# ##### ##" # | | ???????????????# ????#### ## """ | | ???????????????? ???## ## "" " | | ?????????????#???# ??# ""##" | | ?????????????????# ### ##### | | ?????????????????## ;##&% % ##??# | | ?????????????????#;####; # #??### | | ?????????????????##;;##% # #????? | | ?????????????????##;; # ##????? | | ????????????#????### ### #?????? | | ???????????????### %=######## " ##?????? | | ???????????????# " ##???? ""##??????? | | ??????????????# @ #???# & #???????? | | ??????????????## #?? %& ??? ??? | | ???????????????#### !& ???????? | | ??????????????????#### ?? ?#????? | | ??????????????##?????### ## # # R ?????????? | | ???????????????????????# #? #?#?## ??????????? | | ???????????????????????# ? #????????????????? | | ???????????????????????# ?##????????????????? | | ??????????????#????????## ?????????????? ?#??? | | ?????????????????????#??? #??????????????????? | | ????????????????????????? #??????????????????? | | ????????????????????????? ##??????????????????? | | ??????????????????????? ? #????????????????? ?? | | ????????????????????????? #???????????????????? | | ?????????????????????????? ?????????????? ??#? | | ???????????????????????????????????????????????? | | ???????????????????????????????????????????????? | | ???????????????????????????????????????????????? | | ???????????????????????????????????????????????? | | ???????????????????????????????????????#???????? | | ???????????????????????????????????????????????? | | ???????????????????????????????????????????????? | | ?????????????????????????????????????????????### | | ????????????????????????????????????????????## | | ????????????????????????????????????????????# | +----------------------------------------------------+ Best States ------------- Heat Dissipation 25 Energy Generation 14 Energy Capacity 250 Matter Stores 300 Matter Capacity 300 Sight Range 16 Robot Scan Range 14 Terrain Scan Range 16 Terrain Scan Density 10 Evasion (%) 40 Recoil Reduction 2 Item Schematics ----------------- None Robot Schematics ------------------ None Fabricated ------------ Nothing Alien Tech Used ----------------- None Achievements -------------- None Challenges ------------ None Game ------ Seed BiometalCoreTearclaws Manual? 0 Play Time 00:36:08 Cumulative 154.3 hours Start 2024.04.21 @ 14:01:07 End 2024.04.27 @ 09:58:23 Sessions 2 Manual Loads 0 Difficulty Rogue Special Mode None Game No. 144 Rogue 144 Adventurer 0 Explorer 0 Win Type - Total 0 Types 0/0/0/0/0/0/0/0/0 Lore% 38 Gallery% 44 Achievement% 35 Wizard Run 0 Options --------- Layout 0 ASCII 1 Keyboard 0 Movement Mouse Keybinds 0 Fullscreen 1 Font 18/SmallcapsGlow Map View 76x50 Zoom Use 0% Tactical HUD 1 Map Filters NONE Filters NONE Steam 1 RUN: e9e7c6e9-5793-403b-a68b-bdf1b332357e